Cogmind - Beta 15 @@@ ROGUE MODE // 2025.09.14 @ 22:32:53 Player: Beter Result: Destroyed by Y-54 Guardian with Gatling Laser Performance ------------- Evolutions (3) 1500 Regions Visited (5) 1000 Robots Destroyed (35) 175 Value Destroyed (1387) 1387 Prototype IDs (1) 20 Alien Tech Used (0) 0 Bonus (0) 0 TOTAL SCORE: 4082 Bonus ------- None Cogmind --------- Core Integrity 0/700 Matter 280/300 Energy 100/100 System Corruption 0% Temperature Cool (18) Movement Core (50) Location -7/Storage Parts ------- > --- POWER (2) -------- (None) > --- PROPULSION (3) --- (None) > --- UTILITY (5) ------ Visual Processing Unit > --- WEAPON (3) ------- Mining Claw > --- INVENTORY (5) ---- (None) Peak State ------------ > --- POWER ------------ Improved Deuterium Engine Heavy Deuterium Engine > --- PROPULSION ------- Medium Treads Medium Treads Aluminum Leg > --- UTILITY ---------- Visual Processing Unit Improved Light Armor Plating Improved Light Armor Plating Improved Shield Generator Hacking Suite > --- WEAPON ----------- Pulse Rifle Pulse Rifle Pulse Rifle > --- INVENTORY -------- Aluminum Leg Aluminum Leg Improved Light Armor Plating Shock Absorption System Gatling Laser [Rating: 43] Favorites ----------- Power Ion Engine Engine Ion Engine Propulsion Light Treads Treads Light Treads Leg Aluminum Leg Wheel Wheel Utility Visual Processing Unit Device Improved Heat Sink Storage Small Storage Unit Processor Visual Processing Unit Hackware Hacking Suite Protection Improved Light Armor Plating Weapon Grenade Launcher Energy Gun Pulse Rifle Energy Cannon Heavy Particle Cannon Ballistic Gun Assault Rifle Launcher Grenade Launcher Special Weapon Multitool Slashing Weapon Great Axe Build | -11 -10 -10 -8 -7 -7 ------- Run | Yrd Mat Sub Mat Fac Sto Slots Evolved 6 | . . . 4 2 . Power 1 | . . . . 1 . Propulsion 1 | . . . 1 . . Utility 3 | . . . 2 1 . Weapon 1 | . . . 1 . . Parts Attached 63 | 8 3 6 20 13 13 Power 8 | 2 . 1 1 2 2 Engine 8 | 2 . 1 1 2 2 Core . | . . . . . . Reactor . | . . . . . . Propulsion 16 | 2 . 1 7 3 3 Treads 6 | 2 . 1 . 2 1 Leg 8 | . . . 5 1 2 Wheel 2 | . . . 2 . . Hover . | . . . . . . Flight . | . . . . . . Utility 13 | 1 2 1 3 5 1 Device 5 | . 2 . 1 2 . Storage 2 | 1 . . 1 . . Processor 2 | . . 1 1 . . Hackware 1 | . . . . 1 . Protection 3 | . . . . 2 1 Artifact . | . . . . . . Weapon 26 | 3 1 3 9 3 7 Energy Gun 10 | 1 . . 4 3 2 Energy Cannon 1 | . . . 1 . . Ballistic Gun 8 | 2 . 3 2 . 1 Ballistic Cannon . | . . . . . . Launcher 3 | . 1 . 1 . 1 Special Weapon 1 | . . . 1 . . Impact Weapon . | . . . . . . Slashing Weapon 3 | . . . . . 3 Piercing Weapon . | . . . . . . Special Melee Weapon . | . . . . . . Unidentified Prototypes 1 | . . . . 1 . Parts Lost 47 | . . 2 20 . 25 Power 6 | . . 1 2 . 3 Propulsion 14 | . . . 7 . 7 Utility 9 | . . . 3 . 6 Weapon 18 | . . 1 8 . 9 Highest Loss Streak 14 | . . 2 14 . 13 To Critical Strikes . | . . . . . . Average Backups 4 | 3 5 6 4 2 2 Power . | . 1 1 . . . Propulsion 1 | 2 4 2 . 1 1 Utility . | . . 1 . 1 1 Weapon 1 | . . 1 1 . . Tool/Special . | . . . . . . Unused Backups 3 | . . 3 . . . Power . | . . . . . . Propulsion 2 | . . 2 . . . Utility . | . . . . . . Weapon 1 | . . 1 . . . Tool/Special . | . . . . . . Average Slot Usage (%) 85 | . 96 99 58 86 58 Engine 10 | . 14 14 4 8 7 Treads 18 | . 28 28 7 . 6 Leg 3 | . . . 5 17 4 Device 4 | . 10 2 2 10 3 Storage 9 | . 14 14 10 2 . Processor 8 | . . 12 6 7 7 Hackware 1 | . . . . 5 2 Protection 2 | . . . . 10 8 Energy Gun 4 | . 4 . 6 11 12 Ballistic Gun 12 | . 14 18 7 11 . Launcher 6 | . 9 9 4 . 1 Peak Build Rating 43 | 6 9 13 15 43 43 Average Rating 14 | 4 7 10 11 29 24 On Entrance 14 | . 6 9 13 14 43 Naked Turns . | . . . . . . Heaviest Build 41 | 14 16 17 22 40 41 Greatest Support 56 | 40 40 40 40 56 56 Greatest Overweight (x) 9 | . . . 5 1 9 Average Overweight (x) . | . . . . . . Largest Inventory Capacity 8 | 8 8 8 8 8 5 Average Capacity 7 | 7 8 8 8 5 5 Most Carried 8 | 5 6 8 7 5 5 Average Carried 4 | 3 5 6 4 2 2 Final Capacity 8 | 8 8 8 8 5 5 Final Carried 7 | 5 6 7 . 5 . Class Distribution -------------------- 74% | Mutant 10% | Scavenger-Tank 6% | Tank 5% | Skirmisher Dominant Class ---------------- Mutant | -10/Materials Mutant | -10/Subcaves Mutant | -8/Materials Scavenger-Tank | -7/Factory Mutant | -7/Storage Resources | -11 -10 -10 -8 -7 -7 ----------- Run | Yrd Mat Sub Mat Fac Sto Matter Collected 1302 | 201 40 256 245 118 442 Remotely . | . . . . . . Salvage Created 1178 | . 117 163 204 101 593 Parts 55 | . 6 10 13 6 20 Haulers Intercepted . | . . . . . . Recyclers Shooed . | . . . . . . Parts Field Recycled . | . . . . . . Retrieved Matter . | . . . . . . Parts Self-Destructed 19 | . . 19 . . . Prevented . | . . . . . . Kills | -11 -10 -10 -8 -7 -7 ------- Run | Yrd Mat Sub Mat Fac Sto Combat Hostiles Destroyed 28 | . 3 7 4 2 12 Melee 2 | . . . . . 2 Guns 17 | . 3 3 2 2 7 AOE 9 | . . 4 2 . 3 Classes Destroyed 9 | . 2 2 2 . 3 Worker 3 | . . . 1 . 2 Recycler 1 | . . . . . 1 Watcher 3 | . 2 . . 1 . Swarmer 2 | . . 2 . . . Grunt 15 | . 3 . 3 2 7 Sentry 4 | . . . 1 . 3 Hunter 1 | . . . . . 1 Programmer 1 | . . . . . 1 Subdweller 5 | . . 5 . . . Best Kill Streak 4 | . 2 2 1 2 4 Combat Bots Only 3 | . 2 2 1 2 3 Max Kills in Single Turn 2 | . 1 1 1 1 2 Gunslinging . | . . . . . . Exploded 2 | . . 1 1 . 2 Melee 1 | . . . . . 1 Uniques/NPCs Destroyed . | . . . . . . Combat | -11 -10 -10 -8 -7 -7 -------- Run | Yrd Mat Sub Mat Fac Sto Hostile Shots Fired 623 | . 6 54 175 27 361 Missed 213 | . 1 18 61 8 125 Hits 410 | . 5 36 114 19 236 Projectile 410 | . 5 36 114 19 236 Critical Strikes 17 | . . 2 7 2 6 Damage Taken 5532 | . 61 637 1876 249 2709 Core 1285 | . 12 99 471 . 703 Absorbed by Shields 113 | . . . . 97 16 Core Remaining (%) 56 | 100 . 55 14 . . Volleys Fired 109 | . 8 35 21 8 37 Largest 3 | . 2 2 3 3 3 Hottest 206 | . 50 60 135 189 206 Shots Fired 211 | . 14 66 45 24 62 Gun 163 | . 8 48 28 24 55 Cannon 7 | . . . 7 . . Launcher 36 | . 6 18 5 . 7 Special 5 | . . . 5 . . Kinetic 92 | . 8 48 18 14 4 Thermal 82 | . . . 21 10 51 Explosive 36 | . 6 18 5 . 7 Electromagnetic 1 | . . . 1 . . Robot Hit Streak 17 | . 2 12 5 15 17 Robot Miss Streak 7 | . 1 3 3 3 7 Penetration Max . | . . . . . . Secondary Targets 1 | . . . . 1 . Max Gunslinging Chain 1 | . . . . 1 . Shots Hit Robots 121 | . 5 31 23 17 45 Core Hits 83 | 1 11 11 14 8 38 Critical Kills 1 | . . 1 . . . Critical Parts Destroyed . | . . . . . . Critical Strikes 3 | . . 1 . 2 . Burn 2 | . . . . 2 . Destroy 1 | . . 1 . . . Melee Attacks 6 | . . . . . 6 Impact . | . . . . . . Slashing 6 | . . . . . 6 Piercing . | . . . . . . Sneak Attacks 1 | . . . . . 1 Combat Hostiles . | . . . . . . Follow-up Attacks . | . . . . . . Damage Inflicted 3213 | 4 239 822 540 276 1332 Guns 1631 | . 58 330 256 276 711 Cannons 75 | . . . 75 . . Explosions 1206 | . 179 485 151 . 391 Melee 213 | . . . . . 213 Ramming 77 | 4 2 7 47 . 17 Kinetic 730 | . 58 330 181 140 21 Thermal 987 | . . . 161 136 690 Explosive 1206 | . 179 485 151 . 391 Electromagnetic . | . . . . . . Impact . | . . . . . . Slashing 213 | . . . . . 213 Piercing . | . . . . . . Highest Corruption 6 | . . . 6 . . Average Corruption 5 | . . . 5 . . Corruption Purged . | . . . . . . Corruption Blocked . | . . . . . . Effects 5 | . . . 5 . . Matter Fused 2 | . . . 2 . . Heat Flow Errors 1 | . . . 1 . . Misfires 1 | . . . 1 . . Weapon Failures 1 | . . . 1 . . Overload Shots . | . . . . . . Overflow Damage 25 | . . . 1 . 24 Projectiles . | . . . . . . Explosions 16 | . . . 1 . 15 Melee 9 | . . . . . 9 Knockbacks . | . . . . . . Impact . | . . . . . . Kinetic . | . . . . . . Secondary . | . . . . . . Self-Inflicted Damage 387 | . . 75 77 60 175 Shots 10 | . . 4 2 1 3 Rammed 36 | 4 3 1 23 . 5 Targets Rammed 42 | 4 3 1 26 . 8 Kicked 6 | . . . 3 . 3 Crushed . | . . . . . . Highest Temperature 487 | . 5 . 142 201 487 Average Temperature 150 | . 2 . 51 76 198 Received Heat Transfer 2234 | . 36 36 1098 140 924 Effects 16 | . . . . . 16 Shutdowns 4 | . . . . . 4 Interference 3 | . . . . . 3 Matter Decay 3 | . . . . . 3 Damage (minor) 2 | . . . . . 2 Damage (major) 4 | . . . . . 4 Siege Activations . | . . . . . . Martial Activations . | . . . . . . Shielding Activations . | . . . . . . Robots Disrupted . | . . . . . . Combat Hostiles . | . . . . . . Robots Corrupted . | . . . . . . Combat Hostiles . | . . . . . . Parts Fried . | . . . . . . Impact Corruptions . | . . . . . . Robots Melted . | . . . . . . Combat Hostiles . | . . . . . . Parts Melted 4 | . . . . . 4 Heat Transferred 2217 | . . . 273 444 1500 Parts Sabotaged . | . . . . . . Parts Stolen . | . . . . . . Parts Stripped . | . . . . . . Power Chain Reactions . | . . . . . . Alert | -11 -10 -10 -8 -7 -7 ------- Run | Yrd Mat Sub Mat Fac Sto Maximum Alert Level . | . . . . . . Low Security (%) 100 | 100 100 . 100 100 100 Level 1 . | . . . . . . Level 2 . | . . . . . . Level 3 . | . . . . . . Level 4 . | . . . . . . Level 5 . | . . . . . . High Security . | . . . . . . Max Security . | . . . . . . Peak Influence 190 | . 98 . 69 71 190 Initial 7 | . . . . 6 7 Average 38 | . 44 . 15 15 71 Influence Increases 1084 | . 164 50 241 88 541 Destroy 0b10 Robot/C 460 | . 60 40 80 40 240 Destroy 0b10 Robot/NC 35 | . 10 . 5 5 15 Destroy Leader 136 | . 24 10 30 2 70 Successful Hack 18 | . 13 . 5 . . Disable Machine 150 | . 30 . 30 15 75 Destroy Structure 150 | . 27 . 31 26 66 Lose Combat Pursuer 135 | . . . 60 . 75 Influence Decreases 963 | . 100 114 226 85 438 Entered New Map 52 | . . 32 . 9 11 Time Decay 588 | . 100 82 119 76 211 Lost Part 323 | . . . 107 . 216 Squads Dispatched 8 | . 1 . 3 . 4 Investigation 5 | . 1 . 3 . 1 Extermination 1 | . . . . . 1 Reinforcement 2 | . . . . . 2 Assault . | . . . . . . Garrison . | . . . . . . Intercept . | . . . . . . Searches Triggered . | . . . . . . Construction Impeded . | . . . . . . Haulers Reinforced 1 | . . . . . 1 Active Scanning Responses . | . . . . . . Cargo Convoy Interrupts . | . . . . . . Stealth | -11 -10 -10 -8 -7 -7 --------- Run | Yrd Mat Sub Mat Fac Sto Distress Signals 4 | . . . 2 . 2 Communications Jammed . | . . . . . . Distress Signals . | . . . . . . Times Spotted 57 | . 6 9 13 5 24 Peak Tracking Total 8 | . 2 3 8 3 7 Tactical Retreats 5 | . . . 3 . 2 Traps | -11 -10 -10 -8 -7 -7 ------- Run | Yrd Mat Sub Mat Fac Sto Traps Triggered 2 | . . . 1 . 1 Indirectly . | . . . . . . Trap Hack Attempts . | . . . . . . Triggered . | . . . . . . Disarmed . | . . . . . . Reprogrammed . | . . . . . . Reused . | . . . . . . Traps Extracted . | . . . . . . Installed . | . . . . . . Triggered . | . . . . . . Machines | -11 -10 -10 -8 -7 -7 ---------- Run | Yrd Mat Sub Mat Fac Sto Machines Disabled 10 | . 2 . 2 1 5 Max in Single Turn 2 | . 1 . 1 1 2 Machines Repaired . | . . . . . . Machines Dismantled . | . . . . . . Machines Sabotaged . | . . . . . . Overloaded Fab Kills . | . . . . . . Hacking | -11 -10 -10 -8 -7 -7 --------- Run | Yrd Mat Sub Mat Fac Sto Machines Accessed 11 | . 6 . 3 . 2 Terminals 8 | . 6 . 2 . . Fabricators . | . . . . . . Repair Stations . | . . . . . . Recycling Units 1 | . . . . . 1 Scanalyzers . | . . . . . . Garrison Access 2 | . . . 1 . 1 Total Hacks 22 | . 14 . 4 . 4 Successful 8 | . 5 . 1 . 2 Failed 14 | . 9 . 3 . 2 Catastrophic 3 | . 2 . 1 . . Database Lockouts . | . . . . . . Manual . | . . . . . . Terminals 16 | . 14 . 2 . . Fabricators . | . . . . . . Repair Stations . | . . . . . . Recycling Units 3 | . . . . . 3 Scanalyzers . | . . . . . . Garrison Access 3 | . . . 2 . 1 Terminal Hacks 6 | . 5 . 1 . . Alert Level 1 | . 1 . . . . Locate Traps 3 | . 3 . . . . Zone Layout 2 | . 1 . 1 . . Fabricator Hacks . | . . . . . . Repair Station Hacks . | . . . . . . Recycling Unit Hacks 2 | . . . . . 2 Report Inventory 1 | . . . . . 1 Retrieve Components 1 | . . . . . 1 Scanalyzer . | . . . . . . Garrison Access Hacks . | . . . . . . Unauthorized Hacks . | . . . . . . Terminals . | . . . . . . Fabricators . | . . . . . . Repair Stations . | . . . . . . Recycling Units . | . . . . . . Scanalyzers . | . . . . . . Garrison Access . | . . . . . . Data Cores Recovered 1 | . 1 . . . . Used . | . . . . . . Hacking Detections 8 | . 4 . 2 . 2 Full Trace Events 5 | . 3 . 1 . 1 Feedback Events . | . . . . . . Feedback Blocked . | . . . . . . Robot Schematics Acquired . | . . . . . . Robots Built . | . . . . . . Authchips . | . . . . . . Time . | . . . . . . Total Robot Build Rating . | . . . . . . Part Schematics Acquired . | . . . . . . Parts Built . | . . . . . . Authchips . | . . . . . . Time . | . . . . . . Total Part Build Rating . | . . . . . . Parts Repaired . | . . . . . . Time . | . . . . . . Parts Recycled . | . . . . . . Recycled Matter . | . . . . . . Retrieved Matter . | . . . . . . Retrieved Components 3 | . . . . . 3 Parts Scanalyzed . | . . . . . . Part Schematics Acquired . | . . . . . . Parts Damaged . | . . . . . . Bothacking | -11 -10 -10 -8 -7 -7 ------------ Run | Yrd Mat Sub Mat Fac Sto Used RIF Installer . | . . . . . . Robots Hacked . | . . . . . . Non-combat . | . . . . . . Combat . | . . . . . . Robot Hacks Applied . | . . . . . . Relay Couplers Released . | . . . . . . Fabnet Peak Effective % . | . . . . . . Robots Rewired . | . . . . . . Allies Hacked . | . . . . . . Hacks Repelled . | . . . . . . Allies | -11 -10 -10 -8 -7 -7 -------- Run | Yrd Mat Sub Mat Fac Sto Total Allies . | . . . . . . Largest Group . | . . . . . . Highest-Rated Group . | . . . . . . Highest-Rated Ally . | . . . . . . Total Orders . | . . . . . . Ally Attacks . | . . . . . . Total Damage . | . . . . . . Kills . | . . . . . . Allies Corrupted . | . . . . . . Allies Melted . | . . . . . . Intel | -11 -10 -10 -8 -7 -7 ------- Run | Yrd Mat Sub Mat Fac Sto Active Infowar (turns) 2570 | . 83 1437 349 372 329 Optics 2487 | . . 1437 349 372 329 Terrain 83 | . 83 . . . . Robot Analysis Total . | . . . . . . Derelict Logs Recovered 1 | . . 1 . . . Drone Launches . | . . . . . . Drone Recoveries . | . . . . . . Exploration | -11 -10 -10 -8 -7 -7 ------------- Run | Yrd Mat Sub Mat Fac Sto Turns Passed 3550 | 92 329 1669 472 372 616 Spaces Moved 1939 | 47 182 968 243 162 337 Core 131 | 4 . . 26 . 101 Treads 1437 | 43 182 968 116 2 126 Legs 364 | . . . 94 160 110 Wheels 7 | . . . 7 . . Hover . | . . . . . . Flight . | . . . . . . Fastest Speed 50 | 50 160 160 80 120 50 Average Speed 154 | 150 160 160 144 180 132 Slowest Speed 500 | 160 160 160 300 190 500 Overloaded Moves . | . . . . . . Propulsion Burnouts . | . . . . . . Robots Hopped . | . . . . . . Potential Cave-ins . | . . . . . . Cave-ins Triggered . | . . . . . . Exploration Rate (%) 27 | 4 35 58 19 5 43 Regions Visited 5 Branch Regions 2 Pre-discovered Areas 2 | . . 2 . . . Known Exits Taken . | . . . . . . Unknown Exits Taken 5 | 1 1 1 1 1 . Scrap Searched 2 | . . 2 . . . Spaces Dug 1 | . . . . . 1 Terrain Destroyed 270 | . 28 86 44 38 74 Melee 1 | . . . . . 1 Projectile 4 | . . . 4 . . AOE 265 | . 28 86 40 38 73 Terrain Rammed . | . . . . . . Walls Destroyed . | . . . . . . Machines Disabled . | . . . . . . Actions | -11 -10 -10 -8 -7 -7 --------- Run | Yrd Mat Sub Mat Fac Sto Total 2250 | 62 203 1025 311 220 429 Wait 60 | . 5 . . 32 23 Move 1934 | 46 181 967 242 161 337 Hop . | . . . . . . Pick Up 19 | 4 2 7 1 5 . Fast Attach 36 | 6 1 1 13 5 10 Attach 14 | . . 1 8 . 5 Detach . | . . . . . . Swap 20 | 2 2 6 . 8 2 Drop 10 | . 1 7 . 1 1 Fire 109 | . 8 35 21 8 37 Melee 6 | . . . . . 6 Ram 26 | . . . 22 . 4 Kick 6 | . . . 3 . 3 Crush 10 | 4 3 1 1 . 1 Escape Stasis . | . . . . . . Rewire . | . . . . . . Trap . | . . . . . . Miscellaneous . | . . . . . . Route ------- -11/Scrapyard -10/Materials -10/Subcaves (discovered 2 exits: *Mat / [*Scr]) -8/Materials -7/Factory -7/Storage History --------- Turn | Location | Event 37 | -11/Scrapyard | Discovered new exit (range 16) 93 | -11/Scrapyard | Entered Materials 94 | -10/Materials | Met a group of wandering Federalists 307 | -10/Materials | Build established: Mutant 400 | -10/Materials | Discovered new exit (range 13) 422 | -10/Materials | Entered Subcaves 423 | -10/Subcaves | Continued accompanying wandering Federalists (5) 505 | -10/Subcaves | A swath of the cavern ceiling suddenly collapsed 574 | -10/Subcaves | Shifting Twisted Machinery released Spk. Treads 575 | -10/Subcaves | Shifting Twisted Machinery released Sub. Machine Gun 710 | -10/Subcaves | Learned location of Zion (-7) 710 | -10/Subcaves | Met a Zionite searching for "candidates" 1410 | -10/Subcaves | Shifting Twisted Machinery released Barrage Gun 1411 | -10/Subcaves | Shifting Twisted Machinery released Multitool 1591 | -10/Subcaves | A swath of the cavern ceiling suddenly collapsed 1678 | -10/Subcaves | Discovered new exit (range 14) 1892 | -10/Subcaves | Ambushed by Subdweller buried in earth 2091 | -10/Subcaves | Entered Materials 2091 | -8/Materials | Evolved 4 slots: Propulsion x1, Utility x2, Weapon x1 2327 | -8/Materials | Lost 5 parts (1p2n2w) 2432 | -8/Materials | Core integrity fell below 50% 2471 | -8/Materials | Core integrity fell below 20% 2475 | -8/Materials | Lost 14 parts (1p5n3u5w) 2552 | -8/Materials | Discovered new exit (range 9) 2563 | -8/Materials | Entered Factory 2563 | -7/Factory | Evolved 2 slots: Power x1, Utility x1 2869 | -7/Factory | Build established: Scavenger-Tank 2915 | -7/Factory | Discovered new exit (range 9) 2935 | -7/Factory | Entered Storage 3257 | -7/Storage | Lost 13 parts (2p3n4u4w) 3457 | -7/Storage | Core integrity fell below 50% 3468 | -7/Storage | Lost 4 parts (2n2w) 3488 | -7/Storage | Build established: Mutant 3532 | -7/Storage | Core integrity fell below 20% 3551 | -7/Storage | Destroyed by Y-54 Guardian with Gatling Laser Last Messages --------------- 03472_ The unstable cave ceiling collapses. 03472_ Sneak attack on A-02 Transporter. 03472_ U-05 Engineer lays Concrete. 03480_ Imp. Light Armor Plating destroyed. 03482_ U-05 Engineer lays Concrete. 03484_ M-28 Smith repairs A-02 Transporter Lgt. Treads. 03484_ U-05 Engineer lays Concrete. 03510_ Great Axe destroyed. 03512_ Slammed into Y-54 Guardian. 03512_ Y-54 Guardian destroyed. 03514_ Acquired Mining Claw. 03518_ Acquired Imp. Deuterium Engine. 03519_ Acquired 56 matter. 03524_ Acquired Lgt. Treads. 03529_ Acquired Flak Gun. 03539_ Imp. Deuterium Engine destroyed. 03544_ Lgt. Treads destroyed. 03547_ Flak Gun destroyed. 03551_ Mining Claw destroyed. Map ----- +----------------------------------------------------+ | ??????????????????????????# # ???########?? | | ??????????????????????????# # ???########### | | ???????????????????????#### # "" ""???# """ """ # | | ?????????????????####### ## # "????# """ """ # | | ???????????????+ # " "????# """ """ # | | ??????????????????#### # #+###### # | | ?????????????????##### # # # | | ?????????????##### # # ^ # # | | ?????????????# #######+## """ / # | | ?????????????# # ^""""" # # | | ?????????????# # # """"" ### # # ## | | ?????????????# # # #### # | | ?????????????# # + #?# | | ??????????" + # # """ """ #?## | | ??????????" # ?# """ # """G""" #?# | | ?????????????# ??# """ ##+######## #?# # | | ?????????????#???# """ #?????????# #?# | | ?????????????????# #?????????+ #?# # | | ?????????????????#;########?????????# #?# | | ?????????????????# #?????????# ### | | ?????????????#???# Y """#?????????# | | ?????????????# ?# Y"#?????????# # | | ?????????????# # """#?????????###### | | ?????????????+ Y #??????????????# # | | ?????????????????# #??????????????# ###### | | ?????????????????+ |@#??????????????# T#???? | | ?????????????????# % | ##?????????????# ##???? | | ?????????????????# ! #?????????????""""????? | | ?????????????????###########?????????????????????? | | ?????????????????????????????????????????????????? | | ?????????????????????????????????????????????????? | | ?????????????????????????????????????????????????? | | ?????????????????????????????????????????????????? | | ?????????????????????????????????????????????????? | | ?????????????????????????????????????????????????? | | ?????????????????????????????????????????????????? | | ?????????????????????????????????????????????????? | | ?????????????????????????????????????????????????? | | ?????????????????????????????????????????????????? | | ?????????????????????????????????????????????????? | | ?????????????????????????????????????????????????? | | ?????????????????????????????????????????????????? | | | | | | | | | | | | | | | | | +----------------------------------------------------+ Best States ------------- Heat Dissipation 48 Energy Generation 29 Energy Capacity 500 Matter Stores 300 Matter Capacity 400 Sight Range 18 Terrain Scan Range 14 Terrain Scan Density 10 Armor Coverage 300 Resistance: EX 25 Evasion (%) 55 Recoil Reduction 2 Offensive Hacking 10 Item Schematics ----------------- None Robot Schematics ------------------ None Fabricated ------------ Nothing Repaired ---------- Nothing Alien Tech Used ----------------- None Achievements -------------- None Challenges ------------ None Game ------ Seed NeutrinoGreatFragment Manual? 0 Play Time 01:04:49 Cumulative 7.2 hours Start 2025.09.14 @ 21:03:18 End 2025.09.14 @ 22:32:53 Sessions 1 Manual Loads 0 Difficulty Rogue Special Mode None Game No. 7 Rogue 7 Adventurer 0 Explorer 0 Win Type - Total 0 Types 0/0/0/0/0/0/0/0/0/0 Lore% 2 Gallery% 12 Achievement% 10 Wizard Run 0 Options --------- Layout 1 ASCII 1 Keyboard 1 Movement Numpad Keybinds 0 Fullscreen 1 Font 24/Smallcaps Map View 50x35 Zoom Use 0% Tactical HUD 1 Map Filters NONE Filters NONE Steam 1 RUN: 24332974-522e-4307-bebf-ceb81895d359